Cogmind - Beta 9.2 @@@ ROGUE MODE // 2020.03.29 @ 15:00:25 Player: Tone Result: Destroyed by G-73 Enforcer with Heavy Laser Performance ------------- Evolutions (8) 4000 Regions Visited (30) 6000 Robots Destroyed (465) 2325 Value Destroyed (22994) 22994 Prototype IDs (48) 960 Alien Tech Used (5) 1000 Bonus (10380) 10380 TOTAL SCORE: 47659 Bonus ------- Triggered High Security 500 High Alert Combat Kills 5744 Follower Combat Kills 748 Network Hubs Disabled 200 Met Imprinter 300 Met Zhirov 300 MAIN.C Attacked Warlord 500 Met R17 at Cetus 500 Used Core Reset Matrix 3000 Friendly Fire -1412 Cogmind --------- Core Integrity 0/1450 Matter 230/300 Energy 100/100 System Corruption 23% Temperature Cool (18) Movement Core (200) Ox3 Location -2/Research Parts ------- > --- POWER (1) -------- (None) > --- PROPULSION (4) --- Biometal Heavy Treads Xenon Bombardment Thruster > --- UTILITY (13) ----- (None) > --- WEAPON (5) ------- Neutron Missile Launcher > --- INVENTORY (4) ---- (None) Peak State ------------ > --- POWER ------------ Quantum Reactor > --- PROPULSION ------- Advanced Medium Treads Advanced Medium Treads Advanced Medium Treads Advanced Medium Treads > --- UTILITY ---------- Large Storage Unit Large Storage Unit High-capacity Storage Unit High-capacity Storage Unit High-capacity Storage Unit Experimental Energy Well Long-range Terrain Scanner Advanced Target Analyzer Experimental Core Analyzer Improved Armor Integrity Analyzer Centrium Medium Armor Plating Advanced Force Field Phase Redirector > --- WEAPON ----------- Nova Cannon Hypercooled Linear Accelerator Hypercooled Linear Accelerator Hypercooled Linear Accelerator Hypercooled Linear Accelerator > --- INVENTORY -------- Quantum Reactor Vortex Chain Reactor Advanced Medium Treads Advanced Medium Treads Advanced Medium Treads Biometal Medium Treads Advanced Cooling System Advanced Cooling System Experimental Coolant Injector Experimental Energy Well Experimental Energy Well Experimental Matter Compressor Advanced Signal Interpreter Particle Accelerator Improved Kinecellerator Experimental Phase Shifter Centrium Medium Armor Plating Centrium Medium Armor Plating Phase Armor Thermal Barrier Advanced System Shield Long-range Tractor Beam Transdimensional Reconstructor Subatomic Replicator Nova Cannon BFG-9k Vortex Edition Improved KE Penetrator Hypercooled Linear Accelerator Hypercooled Linear Accelerator Smartbomb Launcher [Rating: 191] Favorites ----------- Power Quantum Reactor Engine Cooled Ion Engine Power Core Neutrino Core Reactor Quantum Reactor Propulsion Centrium Heavy Treads Treads Centrium Heavy Treads Leg Myomer Leg Wheel Wheel Hover Unit Gravmag System Flight Unit Xenon Bombardment Thruster Utility High-capacity Storage Unit Device Experimental Sensor Array Storage High-capacity Storage Unit Processor Experimental Signal Interpreter Hackware Improved Hacking Suite Protection Centrium Medium Armor Plating Artifact Phase Redirector Weapon Hypervelocity Coil Gun Energy Gun Heavy EM Pulse Gun Energy Cannon Improved EM Pulse Cannon Ballistic Gun Hypervelocity Coil Gun Ballistic Cannon Hypercooled Linear Accelerator Launcher Improved Proton Missile Launcher Special Weapon Molecular Deconstructor Slashing Weapon Great Axe Piercing Weapon Lance Build | -11 -10 -10 -9 -9 -9 -8 -8 -7 -7 -7 -7 -6 -6 -6 -6 -6 -6 -5 -5 -5 -5 -4 -4 -4 -4 -4 -3 -3 -3 -2 ------- Run | Scr Mat Min Mat Min Exi Min Mat Fac Low Low Zio Pro Fac Ext Cet Arc Hub Fac Upp Upp Zhi Pro Fac Upp Upp War Pro Res Qua Res Slots Evolved 16 | . . . 2 . . . 2 2 . . . . 2 . . . . 2 . . . . 2 . . . . 2 . 2 Power . | . . . . . . . . . . . . . . . . . . . . . . . . . . . . . . . Propulsion 2 | . . . 1 . . . 1 . . . . . . . . . . . . . . . . . . . . . . . Utility 11 | . . . 1 . . . 1 1 . . . . 1 . . . . 2 . . . . 2 . . . . 2 . 1 Weapon 3 | . . . . . . . . 1 . . . . 1 . . . . . . . . . . . . . . . . 1 Parts Attached 912 | 3 13 6 23 . . 5 22 26 22 3 6 13 67 57 39 10 22 33 14 15 11 26 18 13 13 17 14 61 158 182 Power 29 | . 2 . 3 . . . 1 . 2 . . 1 3 3 1 . . 1 . . 2 . . . . . . 1 3 6 Engine 13 | . 2 . 3 . . . 1 . 1 . . 1 3 2 . . . . . . . . . . . . . . . . Core 1 | . . . . . . . . . 1 . . . . . . . . . . . . . . . . . . . . . Reactor 15 | . . . . . . . . . . . . . . 1 1 . . 1 . . 2 . . . . . . 1 3 6 Propulsion 104 | 2 4 2 9 . . 4 6 6 4 2 . . 10 11 2 . 1 1 2 . 2 . 1 2 1 2 . 1 19 10 Treads 82 | 1 2 1 7 . . 2 6 5 4 1 . . 9 11 2 . 1 1 1 . 1 . 1 2 1 1 . 1 13 8 Leg 9 | . . . . . . . . . . 1 . . 1 . . . . . . . . . . . . 1 . . 6 . Wheel 8 | 1 2 1 2 . . 2 . . . . . . . . . . . . . . . . . . . . . . . . Hover 3 | . . . . . . . . 1 . . . . . . . . . . 1 . 1 . . . . . . . . . Flight 2 | . . . . . . . . . . . . . . . . . . . . . . . . . . . . . . 2 Utility 403 | 1 3 . 6 . . . 8 11 6 1 4 5 23 23 14 7 10 6 3 7 7 9 10 4 6 8 8 40 71 102 Device 246 | . . . 2 . . . 5 4 2 1 3 3 11 17 7 2 6 . 2 4 3 5 7 4 4 5 6 24 52 67 Storage 44 | 1 3 . 2 . . . 1 2 1 . . . . . 1 . 1 1 . . . . 1 . . 2 . 8 7 13 Processor 14 | . . . . . . . 1 2 . . . . 2 . . . . . . . . . . . 1 1 . 3 2 2 Hackware 5 | . . . . . . . . . . . . . 1 1 . 1 . 1 . . . . . . . . . . . 1 Protection 83 | . . . 2 . . . 1 3 3 . 1 2 9 5 6 4 3 4 1 3 4 4 2 . 1 . 2 5 5 13 Artifact 11 | . . . . . . . . . . . . . . . . . . . . . . . . . . . . . 5 6 Weapon 376 | . 4 4 5 . . 1 7 9 10 . 2 7 31 20 22 3 11 25 9 8 . 17 7 7 6 7 6 19 65 64 Energy Gun 20 | . 3 . 2 . . . 4 1 1 . . 3 2 . 1 . . . . . . . 1 . . . . . 2 . Energy Cannon 84 | . . . 2 . . 1 2 7 6 . . 2 10 5 4 . 1 5 . . . . 1 . . . . 4 12 22 Ballistic Gun 170 | . 1 3 1 . . . . 1 2 . . . 18 13 12 3 7 15 5 5 . 12 2 5 3 4 3 8 22 25 Ballistic Cannon 34 | . . . . . . . . . . . 1 . . 1 . . . . . . . . . . . . . . 19 13 Launcher 21 | . . 1 . . . . 1 . . . . 2 1 1 5 . . 1 1 2 . . . 1 . . . 1 1 3 Special Weapon 11 | . . . . . . . . . . . . . . . . . . . 1 . . . . . 1 1 . 1 7 . Impact Weapon . | . . . . . . . . . . . . . . . . . . . . . . . . . . . . . . . Slashing Weapon 34 | . . . . . . . . . 1 . 1 . . . . . 3 4 2 1 . 5 3 1 2 1 3 5 2 . Piercing Weapon 2 | . . . . . . . . . . . . . . . . . . . . . . . . . . 1 . . . 1 Special Melee Weapon . | . . . . . . . . . . . . . . . . . . . . . . . . . . . . . . . Unidentified Prototypes 37 | . . . 2 . . . . . 1 . 1 . 1 1 4 . . . . . 6 . . . 1 6 . 1 10 3 Parts Lost 86 | . 2 2 . . . 1 6 4 . . . 2 3 7 . 1 1 1 . 1 . 1 . 1 . . . 10 10 33 Power 4 | . 1 . . . . . . . . . . 1 . . . . . 1 . . . . . . . . . . . 1 Propulsion 19 | . . . . . . . 3 3 . . . . 3 3 . . . . . . . . . . . . . 1 2 4 Utility 23 | . . . . . . . . . . . . . . 2 . . . . . 1 . . . . . . . 4 3 13 Weapon 40 | . 1 2 . . . 1 3 1 . . . 1 . 2 . 1 1 . . . . 1 . 1 . . . 5 5 15 Highest Loss Streak 18 | . 1 1 . . . 1 2 2 . . . 2 2 7 . 1 1 1 . 1 . 1 . 1 . . . 5 4 18 Average Slot Usage (%) 92 | . 99 99 99 100 100 100 99 99 99 100 99 99 97 94 86 85 85 87 87 87 87 88 87 88 88 88 89 88 84 92 Engine 2 | . 13 14 11 11 11 11 9 7 5 . . 3 6 6 1 . . . . . . . . . . . . . . . Reactor 2 | . . . . . . . . . . . . . . . 4 6 6 5 5 5 5 5 5 5 5 5 5 4 4 3 Treads 18 | . 18 15 24 22 22 30 35 29 30 30 30 30 25 25 16 13 13 11 11 11 10 11 10 10 10 10 10 9 10 12 Device 8 | . . . 4 11 11 11 8 4 14 15 14 14 9 5 6 11 7 11 4 4 5 4 8 8 5 12 9 5 10 4 Storage 19 | . 28 28 22 22 22 22 26 22 15 15 15 15 13 13 14 20 20 17 17 17 17 17 18 21 21 21 21 23 27 24 Processor 7 | . . . . . . . . 5 7 7 7 7 6 6 6 6 6 5 5 5 5 5 5 5 7 8 10 18 16 16 Hackware 2 | . . . . . . . . . . . . . 3 3 . . . 4 5 5 5 5 5 5 5 1 . . . 3 Protection 5 | . . . 6 . . . . 4 . . . . 3 4 9 1 4 5 11 11 10 11 12 11 12 6 10 6 . 4 Energy Cannon 5 | . . . 10 22 22 22 6 19 15 15 15 11 4 . 5 . . . . . . . . . . . . . 2 2 Ballistic Gun 11 | . 7 23 3 . . . . . 3 . . . 14 24 14 25 25 20 18 17 17 19 15 17 17 14 17 15 2 12 Slashing Weapon 2 | . . . . . . . . . 3 7 6 7 6 . . . . 1 3 4 5 2 4 2 2 4 2 2 . . Naked Turns 6 | . . . . . . . . . . . . . . . . . . . . . . . . . . . . . . 6 Heaviest Build 261 | 14 55 54 67 66 66 66 98 109 105 99 105 105 113 117 143 146 145 156 156 161 159 161 188 186 179 176 187 207 234 261 Greatest Support 160 | 10 40 40 60 10 10 60 80 80 107 107 107 107 107 120 160 160 160 160 160 160 160 160 160 155 160 160 160 160 160 150 Greatest Overweight (x) 6 | 1 5 5 6 6 6 6 6 1 1 1 . . 1 1 1 . . . 1 1 1 1 1 1 1 1 1 1 3 2 Average Overweight (x) . | . 2 4 4 6 6 2 1 . . . . . . . . . . . . . . . . 1 . . 1 1 . 1 Largest Inventory Capacity 42 | 8 18 18 20 18 18 18 26 26 20 20 20 20 20 20 28 28 28 28 28 28 28 28 34 34 34 34 34 40 40 42 Average Capacity 27 | 6 15 18 18 18 18 18 25 25 19 20 20 20 20 20 21 28 28 28 28 28 28 28 31 34 33 30 34 37 40 37 Most Carried 40 | 6 17 16 18 18 18 18 23 26 20 20 20 20 20 20 28 28 28 28 28 28 28 28 34 34 34 34 34 40 40 40 Average Carried 26 | 6 13 15 17 18 18 17 20 24 19 19 19 19 19 19 21 27 27 27 27 27 27 27 29 32 33 30 33 35 37 36 Final Capacity 40 | 8 18 18 18 18 18 18 26 18 20 20 20 20 20 20 28 28 28 28 28 28 28 28 34 34 28 34 34 40 40 4 Final Carried 40 | 6 16 16 18 18 18 17 23 18 20 20 20 19 20 20 28 28 28 28 28 27 28 28 34 32 28 34 34 33 40 . Class Distribution -------------------- 24% | Scavenger-Mutant 18% | Scavenger-Tank 11% | Scavenger-Skirmisher 10% | Hauler-Tank 9% | Mutant 9% | Hauler-Mutant 8% | Scavenger-Gunner 4% | Hauler-Gunner Dominant Class ---------------- Mutant | -10/Materials Mutant | -10/Mines Mutant | -9/Materials Mutant | -9/Mines Mutant | -9/Exiles Mutant | -8/Mines Hauler-Mutant | -8/Materials Hauler-Tank | -7/Factory Scavenger-Mutant | -7/Lower Caves Scavenger-Mutant | -7/Lower Caves Scavenger-Mutant | -7/Zion Scavenger-Mutant | -6/Proximity Caves Scavenger-Mutant | -6/Factory Scavenger-Skirmisher | -6/Extension Scavenger-Tank | -6/Cetus Scavenger-Skirmisher | -6/Archives Scavenger-Skirmisher | -6/Hub_04(d) Scavenger-Skirmisher | -5/Factory Scavenger-Tank | -5/Upper Caves Scavenger-Tank | -5/Upper Caves Scavenger-Tank | -5/Zhirov Scavenger-Tank | -4/Proximity Caves Scavenger-Tank | -4/Factory Hauler-Tank | -4/Upper Caves Hauler-Tank | -4/Upper Caves Hauler-Skirmisher | -4/Warlord Hauler-Tank | -3/Proximity Caves Hauler-Gunner | -3/Research Hauler-Gunner | -3/Quarantine Scavenger-Gunner | -2/Research Resources | -11 -10 -10 -9 -9 -9 -8 -8 -7 -7 -7 -7 -6 -6 -6 -6 -6 -6 -5 -5 -5 -5 -4 -4 -4 -4 -4 -3 -3 -3 -2 ----------- Run | Scr Mat Min Mat Min Exi Min Mat Fac Low Low Zio Pro Fac Ext Cet Arc Hub Fac Upp Upp Zhi Pro Fac Upp Upp War Pro Res Qua Res Matter Collected 23644 | 230 327 145 272 . . 45 201 180 262 77 50 122 1366 1392 748 302 815 843 364 379 168 914 474 370 447 328 774 2005 4183 5861 Remotely 6173 | . . . . . . . . . . . . . . 106 . . . . . . . . . . . . . 867 1919 3281 Salvage Created 26098 | 63 385 96 777 . . 340 1322 309 205 239 189 265 1042 1521 1327 346 1031 884 345 339 . 586 584 338 161 . 440 2222 2735 8007 Parts 1255 | 1 38 5 53 . . 11 71 8 10 . 3 10 34 67 57 19 59 49 18 12 . 24 24 23 10 . 28 136 141 344 Haulers Intercepted 15 | . 2 . 3 . . . 3 . . . . . . 1 . . 1 . . . . . 1 . . . . 1 . 3 Recyclers Shooed 12 | . . . . . . . . . . . . . 3 . . . . 1 . . . . . . . . . 2 1 5 Parts Field Recycled 7 | . . . . . . . . . . . . . . . . . . . . . . . 7 . . . . . . . Retrieved Matter 137 | . . . . . . . . . . . . . . . . . . . . . . . 137 . . . . . . . Parts Self-Destructed 228 | . . . . . . . . . . 2 3 7 . . . . . . 16 8 . 24 . 22 10 108 28 . . . Prevented 34 | . . . . . . . . . . . . 8 . . . . . . . 3 . . . . . 23 . . . . Kills | -11 -10 -10 -9 -9 -9 -8 -8 -7 -7 -7 -7 -6 -6 -6 -6 -6 -6 -5 -5 -5 -5 -4 -4 -4 -4 -4 -3 -3 -3 -2 ------- Run | Scr Mat Min Mat Min Exi Min Mat Fac Low Low Zio Pro Fac Ext Cet Arc Hub Fac Upp Upp Zhi Pro Fac Upp Upp War Pro Res Qua Res Combat Hostiles Destroyed 343 | . 10 4 11 . . 9 23 5 1 . . 6 12 17 24 4 17 11 6 10 . 4 3 8 2 . 7 28 39 82 Melee 1 | . . . . . . . . . . . . . 1 . . . . . . . . . . . . . . . . . Guns 192 | . 10 2 6 . . . 5 . . . . . 5 13 3 4 17 6 4 1 . 4 3 3 2 . 7 22 16 59 Cannons 72 | . . . 4 . . 8 12 4 1 . . . 3 . 2 . . . . . . . . . . . . 2 21 15 AOE 50 | . . 2 1 . . . 4 . . . . 5 . 3 10 . . 3 2 9 . . . 5 . . . 4 . 2 Classes Destroyed 23 | 1 4 . 3 . . . 1 1 2 . . 2 1 1 . . 1 . . . . . . 1 . . . . 1 4 Worker 26 | . 1 . . . . . 1 . . . . . 1 . . . 2 2 . . . . . . . . . 1 3 15 Builder 16 | . . . . . . . . . . . . . . . . . 1 1 . . . . . . . . . 6 1 7 Tunneler 6 | . . . 1 . . . . . . . . . . 1 . . . . . . . . . . . . . . . 4 Hauler 15 | . 2 . 3 . . . 3 . . . . . . 1 . . 1 . . . . . 1 . . . . 1 . 3 Recycler 21 | 1 . . 1 . . . 1 . . . . . 2 3 . . . 2 . . . . 2 . . . . 1 2 6 Carrier 1 | . . . . . . . . . . . . . . . . . . . . . . . . . . . . . . 1 Mechanic 1 | . . . . . . . . . . . . . . . . . . . . . . . . . . . . . . 1 Operator 8 | . . . . . . . 1 . . . . . 1 3 . 1 . . . . . . . . . . . . 2 . Watcher 19 | . . . 2 . . . 2 . . . . . 2 1 2 . 2 1 . . . . . . . . . 1 3 3 Swarmer 65 | . 6 2 3 . . 3 6 . . . . . . 3 7 . 4 4 1 9 . . . 5 . . 3 5 . 4 Saboteur 1 | . . . . . . . . . . . . . . . . . . . . . . . . . . . . . . 1 Grunt 121 | . 4 2 4 . . 6 13 2 . . . 4 4 7 6 . 5 . 4 . . . . . . . 2 12 17 29 Brawler 4 | . . . . . . . . . . . . 1 . 1 . . . . . . . . . . . . . . . 2 Duelist 7 | . . . . . . . . 1 . . . . . . . . . . . . . . . . . . . . 1 5 Protector 2 | . . . . . . . . . . . . . . . . . . . . . . . . . . . . . . 2 Researcher 1 | . . . . . . . . . . . . . . . . . . . . . . . . . . . . . 1 . Sentry 34 | . . . 4 . . . 4 2 . . . . 3 4 . 4 1 1 1 . . . 2 . . . . 2 . 6 Specialist 2 | . . . . . . . . . . . . . . . . . . . . . . . . 2 . . . . . . Hunter 37 | . . . . . . . . . . . . 1 2 . 2 . 5 2 . 1 . . . 1 2 . 2 2 4 13 Programmer 49 | . . . . . . . . . . . . . 3 . 1 . 2 4 . . . 3 1 . . . . 7 9 19 Behemoth 3 | . . . . . . . . . . . . . . 1 . . . . . . . 1 . . . . . . . 1 Cetus Guard 8 | . . . . . . . . . . . . . . . 8 . . . . . . . . . . . . . . . Quarantine Guard 8 | . . . . . . . . . . . . . . . . . . . . . . . . . . . . . 8 . Samaritan 6 | . . . . . . . . . 3 3 . . . . . . . . . . . . . . . . . . . . Thug 2 | . . . . . . . . . . . . . . 2 . . . . . . . . . . . . . . . . Mutant 1 | . . . . . . . . . 1 . . . . . . . . . . . . . . . . . . . . . Best Kill Streak 26 | 1 4 2 4 . . 3 6 3 1 . . 3 5 3 6 2 7 5 4 5 . 2 2 5 2 . 5 15 10 26 Combat Bots Only 17 | . 3 2 3 . . 3 5 3 1 . . 3 5 3 6 2 6 4 4 5 . 2 2 5 2 . 5 10 7 17 Max Kills in Single Turn 4 | 1 1 1 2 . . 1 2 1 1 1 . 2 1 2 2 1 4 4 2 3 . 2 1 3 1 . 1 4 2 3 Gunslinging 1 | . . . . . . . . . . . . . . . 1 . 1 . . . . . . . . . . . . 1 Exploded 3 | . . 1 1 . . . 2 . . . . 2 . 2 2 . . 3 2 3 . . . 3 . . . 3 . 2 Melee 1 | . . . . . . . . . . . . . 1 . . . . . . . . . . . . . . . . . Uniques/NPCs Destroyed 1 | . . . . . . . . . . . . . . . 1 . . . . . . . . . . . . . . . Revision 17 (-6/Cetus) Combat | -11 -10 -10 -9 -9 -9 -8 -8 -7 -7 -7 -7 -6 -6 -6 -6 -6 -6 -5 -5 -5 -5 -4 -4 -4 -4 -4 -3 -3 -3 -2 -------- Run | Scr Mat Min Mat Min Exi Min Mat Fac Low Low Zio Pro Fac Ext Cet Arc Hub Fac Upp Upp Zhi Pro Fac Upp Upp War Pro Res Qua Res Damage Taken 31475 | . 319 228 462 . . 572 880 613 . . . 591 979 2181 1013 445 1440 764 410 441 . 1175 371 495 24 6 458 3505 3488 10615 Core 2869 | . 34 14 50 . . 60 69 46 . . . 35 20 66 41 27 28 . . 37 . 100 22 . . . 20 277 470 1453 Absorbed by Shields 6409 | . . . . . . . . . . . . . . 185 . . . . . . . . 84 54 . 5 180 992 1784 3125 Reduced by Siege Mode 784 | . . . . . . . . . . . . . . . . . 202 32 39 . . 104 10 31 . . 24 160 30 152 Redirected to Core 348 | . . . . . . . . . . . . . . . . . . . . . . . . . . . . . 209 139 Core Remaining (%) 81 | 100 . 80 . . . 72 87 . . . . 88 . . . . 78 . . . . 86 . . . . 96 . 42 . Volleys Fired 990 | 4 27 13 44 . . 25 69 21 12 8 . 17 42 62 44 14 47 32 11 12 . 22 11 11 3 2 11 80 133 213 Largest 5 | 2 2 2 2 . . 2 2 3 2 2 . 2 3 4 4 4 4 4 4 4 . 4 4 4 4 4 4 4 4 5 Hottest 296 | 90 80 80 136 . . 136 136 204 138 138 . 150 156 207 132 112 158 140 140 140 . 140 140 140 140 140 140 169 296 282 Shots Fired 2781 | 8 54 25 88 . . 50 135 51 16 16 . 23 99 196 73 54 185 98 33 19 . 87 40 38 15 6 44 249 290 789 Gun 2090 | 8 54 24 60 . . . 81 6 3 . . 2 64 185 24 54 183 84 31 10 . 87 40 36 15 5 44 230 135 625 Cannon 603 | . . . 28 . . 50 52 45 13 16 . 14 35 9 26 . 2 13 . . . . . . . . . 14 123 163 Launcher 58 | . . 1 . . . . 2 . . . . 7 . 2 23 . . 1 2 9 . . . 2 . . . 2 6 1 Special 30 | . . . . . . . . . . . . . . . . . . . . . . . . . . 1 . 3 26 . Kinetic 2051 | . 13 17 4 . . . . . 3 . . . 56 185 24 54 183 84 31 10 . 87 40 36 15 5 44 230 221 709 Thermal 248 | 8 . . 28 . . 50 52 40 1 . . 2 17 . . . . . . . . . . . . . . . 31 19 Explosive 35 | . . 1 . . . . 2 . . . . 7 . 2 8 . . 1 2 9 . . . 2 . . . . . 1 Electromagnetic 417 | . 41 7 56 . . . 81 11 12 16 . 14 26 9 41 . 2 13 . . . . . . . . . 16 12 60 Robot Hit Streak 35 | 6 8 5 11 . . 21 15 23 13 7 . 6 20 20 12 22 31 33 25 6 . 22 22 22 9 10 25 26 24 35 Robot Miss Streak 7 | 1 4 2 3 . . 2 4 4 . 2 . 2 3 7 3 1 2 4 1 1 . 3 1 1 1 1 1 5 4 4 Penetration Max 2 | . . . . . . . . . . . . . 1 1 . 1 1 . . . . 1 1 . 1 . . 2 2 2 Secondary Targets 38 | . 1 . . . . . . . . . . . 2 1 1 . 3 . 1 . . . . 1 . . . 6 3 19 Max Gunslinging Chain 2 | . 1 . . . . . . . . . . . 1 1 1 . 1 . 1 . . . . 1 . . . 1 1 2 Shots Hit Robots 1884 | 6 32 13 57 . . 39 93 38 9 12 6 12 76 115 43 42 130 74 26 16 . 38 35 33 10 3 28 178 194 526 Core Hits 1054 | 2 17 9 22 . . 15 43 12 8 4 2 11 29 75 45 22 47 27 14 14 . 17 15 17 3 1 17 97 151 318 Critical Hits 308 | . . . 2 . . 5 12 3 . . . . . 1 2 2 8 14 7 3 . 14 17 13 3 1 10 53 39 99 Critical Kills 106 | . . . 1 . . 3 8 . . . . . . 1 . 1 4 7 3 1 . 3 4 3 2 . 5 13 12 35 Critical Parts Destroyed 166 | . . . 1 . . 2 4 3 . . . . . . 2 1 4 7 3 2 . 6 10 10 1 1 5 34 21 49 Melee Attacks 356 | . . . . . . . . . 3 3 6 9 33 . . . 6 15 33 32 . 59 21 20 26 18 19 48 5 . Impact . | . . . . . . . . . . . . . . . . . . . . . . . . . . . . . . . Slashing 356 | . . . . . . . . . 3 3 6 9 33 . . . 6 15 33 32 . 59 21 20 26 18 19 48 5 . Piercing . | . . . . . . . . . . . . . . . . . . . . . . . . . . . . . . . Sneak Attacks 8 | . . . . . . . . . . . . . 2 . . . . 2 . . . . 3 . . . . 1 . . Combat Hostiles . | . . . . . . . . . . . . . . . . . . . . . . . . . . . . . . . Follow-up Attacks . | . . . . . . . . . . . . . . . . . . . . . . . . . . . . . . . Damage Inflicted 56932 | 70 416 277 972 . . 810 1921 740 268 378 693 801 2222 3153 3379 1100 2678 1728 545 1845 . 1177 703 930 62 40 397 4995 8026 16606 Guns 30198 | 70 378 120 698 . . . 866 49 . . . 24 1094 2462 319 1083 2458 894 218 40 . 548 301 229 57 40 397 3109 3100 11644 Cannons 14208 | . . . 235 . . 810 771 691 268 378 . 211 864 191 561 . 52 275 . . . . . . . . . 392 4386 4123 Explosions 8719 | . 38 157 33 . . . 284 . . . . 566 . 500 2499 . 133 308 327 1063 . . . 473 . . . 1352 431 555 Melee 3329 | . . . . . . . . . . . 693 . 256 . . . . 237 . 742 . 629 402 228 . . . 142 . . Ramming 478 | . . . 6 . . . . . . . . . 8 . . 17 35 14 . . . . . . 5 . . . 109 284 Kinetic 33461 | . 72 68 28 . . . . . . . . . 955 2462 319 1083 2458 894 218 40 . 548 301 229 57 40 397 3109 6540 13643 Thermal 4956 | 70 38 99 268 . . 810 824 595 . . . 24 387 99 . . . . . . . . . . . . . . 788 954 Explosive 6031 | . . 58 . . . . 231 . . . . 566 . 401 1272 . . 308 327 1063 . . . 473 . . . 1188 . 144 Electromagnetic 8677 | . 306 52 670 . . . 866 145 268 378 . 211 616 191 1788 . 185 275 . . . . . . . . . 556 589 1581 Impact . | . . . . . . . . . . . . . . . . . . . . . . . . . . . . . . . Slashing 3329 | . . . . . . . . . . . 693 . 256 . . . . 237 . 742 . 629 402 228 . . . 142 . . Piercing . | . . . . . . . . . . . . . . . . . . . . . . . . . . . . . . . Highest Corruption 23 | . 1 1 . . . . . 1 1 1 1 . 3 5 5 5 2 3 3 3 3 6 2 5 5 6 . 9 22 23 Average Corruption 4 | . 1 1 . . . . . 1 1 1 1 . 1 4 5 2 1 1 3 3 3 5 1 3 5 5 . 3 12 12 Corruption Purged 9 | . . . . . . . . . . . . . 3 1 . 5 . . . . . . . . . . . . . . Effects 630 | . 1 1 . . . . . 1 16 4 . . 13 27 22 13 4 8 28 29 3 52 3 17 40 1 . 26 116 205 Message Errors 118 | . 1 . . . . . . 1 8 2 . . 2 6 9 4 . 3 6 7 . 18 . 4 6 1 . 2 15 23 Matter Fused 90 | . . . . . . . . . . . . . 2 6 3 . . . 7 10 1 11 . 5 14 . . 6 12 13 Heat Flow Errors 45 | . . . . . . . . . . . . . 3 2 1 . . . 2 4 . 6 2 2 4 . . 3 7 9 Energy Discharges 43 | . . 1 . . . . . . . . . . . 3 2 1 2 1 3 1 2 2 . 1 4 . . 2 9 9 Parts Rejected 2 | . . . . . . . . . . . . . . . . . . . . . . . . . . . . . 1 1 Data Loss (minor) 64 | . . . . . . . . . 5 2 . . 3 5 4 1 . 1 9 4 . 6 1 2 2 . . 2 8 9 Data Loss (major) 10 | . . . . . . . . . . . . . . 1 1 1 . . . . . . . 1 3 . . . 1 2 Misfires 13 | . . . . . . . . . . . . . . 1 . . . . . . . . . . 4 . . . 1 7 Alerts 3 | . . . . . . . . . . . . . . . . . . . . . . . . . . . . . 1 2 Misdirections 16 | . . . . . . . . . . . . . . . . . . . . . . . . . . . . . 8 8 Targeting Errors 191 | . . . . . . . . . 1 . . . 3 3 2 4 2 2 1 1 . 8 . 2 2 . . 11 44 105 Weapon Failures 35 | . . . . . . . . . 2 . . . . . . 2 . 1 . 2 . 1 . . 1 . . . 9 17 Overload Shots . | . . . . . . . . . . . . . . . . . . . . . . . . . . . . . . . Overflow Damage 1931 | . . . 5 . . 14 10 7 . 124 262 37 130 49 106 . 33 75 . 581 . 121 . 93 . . . 73 76 135 Projectiles 408 | . . . 5 . . 14 . 7 . 124 . . 29 . 52 . 29 . . . . . . . . . . 2 71 75 Explosions 321 | . . . . . . . 10 . . . . 37 . 49 54 . 2 8 . 59 . . . 8 . . . 50 . 44 Melee 1202 | . . . . . . . . . . . 262 . 101 . . . 2 67 . 522 . 121 . 85 . . . 21 5 16 Knockbacks 54 | . . . . . . . . . . . . . . . . . . . . . . . . . . . . . 36 18 Impact 2 | . . . . . . . . . . . . . . . . . . . . . . . . . . . . . . 2 Kinetic 44 | . . . . . . . . . . . . . . . . . . . . . . . . . . . . . 31 13 Secondary 8 | . . . . . . . . . . . . . . . . . . . . . . . . . . . . . 5 3 Self-Inflicted Damage 560 | . 33 12 39 . . . . . . . . 30 . 58 27 . 86 . . . . . . 32 . . . 202 5 36 Shots 14 | . 1 1 1 . . . . . . . . 2 . 1 2 . 1 . . . . . . 1 . . . 2 1 1 Rammed 30 | . 1 . 1 . . . . . . . . . . . . 1 3 2 . . . . . . 1 . . . 5 16 Targets Rammed 35 | . 1 . 1 . . . 1 . . . . . 1 . . 1 3 2 . . . . . . 1 . . . 5 19 Kicked . | . . . . . . . . . . . . . . . . . . . . . . . . . . . . . . . Crushed 5 | . . . . . . . 1 . . . . . 1 . . . . . . . . . . . . . . . . 3 Highest Temperature 499 | 120 108 111 330 . . 104 13 268 . . . 54 369 300 206 201 421 . 132 356 . 221 258 248 256 45 284 261 330 499 Average Temperature 89 | 63 32 68 91 . . 46 5 100 . . . 23 91 63 81 78 117 . 48 86 . 67 85 117 95 26 119 63 84 113 Received Heat Transfer 4290 | . 78 66 144 . . 279 423 204 . . . 108 231 584 78 45 54 . 114 . . . 38 10 . . 35 298 215 1286 Effects 24 | . . . 1 . . . . 3 . . . . 1 . . . 1 . . . . 1 . . . . . . 1 16 Shutdowns 3 | . . . . . . . . . . . . . . . . . 1 . . . . . . . . . . . . 2 Energy Bleed 7 | . . . 1 . . . . 1 . . . . 1 . . . . . . . . 1 . . . . . . 1 2 Interference 13 | . . . . . . . . 2 . . . . . . . . . . . . . . . . . . . . . 11 Damage (minor) 1 | . . . . . . . . . . . . . . . . . . . . . . . . . . . . . . 1 Siege Activations 38 | . . . . . . . . . . . . . . . . 3 6 1 2 2 . 6 1 1 1 . 2 7 5 1 Total Turns 785 | . . . . . . . . . . . . . . . . 19 191 21 38 4 . 134 27 33 8 . 46 166 83 15 Longest Duration 55 | . . . . . . . . . . . . . . . . 8 53 21 24 3 . 55 27 33 8 . 35 47 21 15 Robots Corrupted 29 | . . . 1 . . . 2 1 . 2 . 1 3 1 9 . . 2 . . . . . . . . . . 2 5 Combat Hostiles 26 | . . . . . . . 2 1 . . . 1 3 1 9 . . 2 . . . . . . . . . . 2 5 Parts Fried 63 | . . . 5 . . . 3 . 3 4 . 2 5 2 21 . 2 4 . . . . . . . . . 2 4 6 Impact Corruptions 4 | . . . . . . . . . . . . . . . . . 1 . . . . . . . . . . . 1 2 Robots Melted 1 | . . . . . . 1 . . . . . . . . . . . . . . . . . . . . . . . . Combat Hostiles 1 | . . . . . . 1 . . . . . . . . . . . . . . . . . . . . . . . . Parts Melted 18 | . . . . . . . 1 6 . . . . 3 1 . . . . . . . . 3 . . . . . 1 3 Heat Transferred 6513 | 186 50 50 407 . . 1443 1369 1073 . . . 37 481 100 . . . . . . . . . . . . . . 703 614 Parts Sabotaged . | . . . . . . . . . . . . . . . . . . . . . . . . . . . . . . . Parts Stolen . | . . . . . . . . . . . . . . . . . . . . . . . . . . . . . . . Parts Stripped . | . . . . . . . . . . . . . . . . . . . . . . . . . . . . . . . Power Chain Reactions 7 | . 1 1 1 . . . 1 . . . . . . 1 1 . . . . . . . . . . . . . . 1 Missiles Intercepted . | . . . . . . . . . . . . . . . . . . . . . . . . . . . . . . . Alert | -11 -10 -10 -9 -9 -9 -8 -8 -7 -7 -7 -7 -6 -6 -6 -6 -6 -6 -5 -5 -5 -5 -4 -4 -4 -4 -4 -3 -3 -3 -2 ------- Run | Scr Mat Min Mat Min Exi Min Mat Fac Low Low Zio Pro Fac Ext Cet Arc Hub Fac Upp Upp Zhi Pro Fac Upp Upp War Pro Res Qua Res Peak Influence 2319 | 5 291 178 416 104 . 160 659 276 . . . . 348 336 448 203 359 245 . . . . 129 . . . . 628 949 2319 Average Influence 339 | 2 142 163 236 51 . 74 341 209 . . . . 192 168 275 80 187 122 . . . . 28 . . . . 181 582 1121 Maximum Alert Level 5 | . 1 . 2 . . . 2 1 . . . . 1 1 2 1 1 1 . . . . . . . . . 2 3 5 Low Security (%) 42 | 100 73 100 34 100 . 100 17 41 . . . . 42 51 27 69 49 78 . . . . 100 . . . . 68 . . Level 1 32 | . 26 . 60 . . . 59 58 . . . . 57 48 56 30 50 21 . . . . . . . . . 12 25 7 Level 2 11 | . . . 5 . . . 23 . . . . . . . 15 . . . . . . . . . . . . 18 40 27 Level 3 6 | . . . . . . . . . . . . . . . . . . . . . . . . . . . . . 33 20 Level 4 2 | . . . . . . . . . . . . . . . . . . . . . . . . . . . . . . 16 Level 5 2 | . . . . . . . . . . . . . . . . . . . . . . . . . . . . . . 20 High Security 1 | . . . . . . . . . . . . . . . . . . . . . . . . . . . . . . 8 Max Security . | . . . . . . . . . . . . . . . . . . . . . . . . . . . . . . . Squads Dispatched 70 | . 4 . . . . . 6 1 . . . . 6 3 . . 6 3 . . . . 2 . . . . 8 7 24 Investigation 16 | . 4 . . . . . 3 1 . . . . 3 1 . . 1 1 . . . . . . . . . 1 . 1 Extermination 18 | . . . . . . . . . . . . . 3 . . . 2 2 . . . . 1 . . . . 2 3 5 Reinforcement 17 | . . . . . . . 3 . . . . . . 2 . . 3 . . . . . 1 . . . . 2 4 2 Assault 16 | . . . . . . . . . . . . . . . . . . . . . . . . . . . . . . 16 Garrison 3 | . . . . . . . . . . . . . . . . . . . . . . . . . . . . 3 . . Intercept . | . . . . . . . . . . . . . . . . . . . . . . . . . . . . . . . Construction Impeded 5 | . . . . . . . . . . . . . . 1 . . 1 . . . . . . . . . . 1 1 1 Haulers Reinforced 2 | . . . . . . . . . . . . . . . . . . . . . . . . . . . . 1 . 1 Stealth | -11 -10 -10 -9 -9 -9 -8 -8 -7 -7 -7 -7 -6 -6 -6 -6 -6 -6 -5 -5 -5 -5 -4 -4 -4 -4 -4 -3 -3 -3 -2 --------- Run | Scr Mat Min Mat Min Exi Min Mat Fac Low Low Zio Pro Fac Ext Cet Arc Hub Fac Upp Upp Zhi Pro Fac Upp Upp War Pro Res Qua Res Distress Signals 21 | . . . 2 . . . 2 . . . . . 1 1 2 . 2 . . . . . . . . 1 . 2 1 7 Communications Jammed . | . . . . . . . . . . . . . . . . . . . . . . . . . . . . . . . Distress Signals . | . . . . . . . . . . . . . . . . . . . . . . . . . . . . . . . Times Spotted 558 | . 23 5 21 . . 9 35 8 1 . . 6 22 46 24 8 29 13 5 5 . 2 12 11 1 9 8 43 55 157 Peak Tracking Total 21 | . 8 3 6 . . 3 6 4 1 . . 3 3 6 5 1 6 4 3 2 . 2 3 5 2 12 7 8 7 21 Tactical Retreats 37 | . 1 . . . . . 2 1 . . . . 1 9 4 . 2 . 1 . . 1 4 2 . . 1 2 1 5 Traps | -11 -10 -10 -9 -9 -9 -8 -8 -7 -7 -7 -7 -6 -6 -6 -6 -6 -6 -5 -5 -5 -5 -4 -4 -4 -4 -4 -3 -3 -3 -2 ------- Run | Scr Mat Min Mat Min Exi Min Mat Fac Low Low Zio Pro Fac Ext Cet Arc Hub Fac Upp Upp Zhi Pro Fac Upp Upp War Pro Res Qua Res Traps Triggered 12 | . 1 . . . . . . 1 . . . . . 4 . . 1 . . 1 . . . . . . . . 3 1 Indirectly . | . . . . . . . . . . . . . . . . . . . . . . . . . . . . . . . Trap Hack Attempts . | . . . . . . . . . . . . . . . . . . . . . . . . . . . . . . . Triggered . | . . . . . . . . . . . . . . . . . . . . . . . . . . . . . . . Disarmed . | . . . . . . . . . . . . . . . . . . . . . . . . . . . . . . . Reprogrammed . | . . . . . . . . . . . . . . . . . . . . . . . . . . . . . . . Reused . | . . . . . . . . . . . . . . . . . . . . . . . . . . . . . . . Traps Extracted . | . . . . . . . . . . . . . . . . . . . . . . . . . . . . . . . Installed . | . . . . . . . . . . . . . . . . . . . . . . . . . . . . . . . Triggered 16 | . . . . 1 . . . . . . . 3 . 1 . . . . . 3 . . . . . 8 . . . . Machines | -11 -10 -10 -9 -9 -9 -8 -8 -7 -7 -7 -7 -6 -6 -6 -6 -6 -6 -5 -5 -5 -5 -4 -4 -4 -4 -4 -3 -3 -3 -2 ---------- Run | Scr Mat Min Mat Min Exi Min Mat Fac Low Low Zio Pro Fac Ext Cet Arc Hub Fac Upp Upp Zhi Pro Fac Upp Upp War Pro Res Qua Res Machines Disabled 52 | . 4 2 3 . . 2 3 . 1 . . . 5 3 4 2 8 2 1 . . . . 1 . . . 4 6 1 Max in Single Turn 4 | . 1 1 2 . . 1 1 . 1 . . . 1 1 2 1 4 1 1 . . . . 1 . . . 2 1 1 Garrison Access 3 | . . . . . . . . . . . . . 2 . . . . . . . . . . . . . . . . 1 Network Hub 1 | . . . . . . . . . . . . . . . . . 1 . . . . . . . . . . . . . Machines Sabotaged . | . . . . . . . . . . . . . . . . . . . . . . . . . . . . . . . Garrisons Compromised . | . . . . . . . . . . . . . . . . . . . . . . . . . . . . . . . Overloaded Fab Kills . | . . . . . . . . . . . . . . . . . . . . . . . . . . . . . . . Fab Network Shutdowns . | . . . . . . . . . . . . . . . . . . . . . . . . . . . . . . . Hacking | -11 -10 -10 -9 -9 -9 -8 -8 -7 -7 -7 -7 -6 -6 -6 -6 -6 -6 -5 -5 -5 -5 -4 -4 -4 -4 -4 -3 -3 -3 -2 --------- Run | Scr Mat Min Mat Min Exi Min Mat Fac Low Low Zio Pro Fac Ext Cet Arc Hub Fac Upp Upp Zhi Pro Fac Upp Upp War Pro Res Qua Res Machines Accessed 89 | . 6 . 1 . 4 . 6 3 . 1 1 . 8 7 4 . 5 6 2 1 5 . 5 . . 2 . 5 11 6 Terminals 49 | . 5 . 1 . . . 3 2 . . . . 4 7 4 . 5 3 . . . . 3 . . . . 3 7 2 Fabricators 6 | . . . . . . . . . . . . . 2 . . . . . . . . . . . . . . 2 . 2 Repair Stations 6 | . . . . . . . . . . . . . . . . . . 3 . . . . 1 . . . . . 2 . Recycling Units 5 | . 1 . . . . . 2 1 . . . . . . . . . . . . . . . . . . . . . 1 Scanalyzers 4 | . . . . . . . 1 . . . . . . . . . . . . . . . 1 . . . . . 2 . Garrison Access 3 | . . . . . . . . . . . . . 2 . . . . . . . . . . . . . . . . 1 Total Hacks 259 | . 15 . 2 . 4 . 13 9 . 1 6 . 19 24 14 . 14 23 5 1 18 . 24 . . 2 . 11 33 21 Successful 141 | . 6 . 1 . 4 . 8 5 . 1 6 . 9 14 7 . 4 10 5 1 18 . 13 . . 2 . 4 15 8 Failed 117 | . 8 . 1 . . . 5 4 . . . . 10 10 7 . 10 13 . . . . 11 . . . . 7 18 13 Catastrophic 33 | . 3 . 1 . . . 1 1 . . . . 3 3 2 . 4 2 . . . . 1 . . . . 3 5 4 Database Lockouts 1 | . 1 . . . . . . . . . . . . . . . . . . . . . . . . . . . . . Manual 115 | . 11 . . . . . 8 7 . . 1 . 14 13 14 1 5 2 . . . . 12 2 . . . 3 19 3 Terminals 158 | . 14 . 2 . . . 9 8 . . . . 9 24 14 . 14 11 . . . . 15 . . . . 6 24 8 Fabricators 21 | . . . . . . . . . . . . . 7 . . . . . . . . . . . . . . 5 . 9 Repair Stations 22 | . . . . . . . . . . . . . . . . . . 12 . . . . 7 . . . . . 3 . Recycling Units 7 | . 1 . . . . . 2 1 . . . . . . . . . . . . . . . . . . . . . 3 Scanalyzers 10 | . . . . . . . 2 . . . . . . . . . . . . . . . 2 . . . . . 6 . Garrison Access 4 | . . . . . . . . . . . . . 3 . . . . . . . . . . . . . . . . 1 Terminal Hacks 81 | . 3 . 1 . 4 . 2 2 . 1 6 . 3 9 2 . 4 6 5 1 18 . 5 . . 2 . 1 4 2 Record 15 | . . . . . 4 . . . . 1 . . . . . . . . 4 . 6 . . . . . . . . . Part Schematic 13 | . . . . . . . . . . . 6 . . 1 . . . . . . 4 . 1 . . . . . . 1 Robot Analysis 6 | . 1 . . . . . . . . . . . . 1 . . . . . . 4 . . . . . . . . . Prototype ID Bank 5 | . . . . . . . . . . . . . . . . . . . . . 4 . . . . . . . 1 . Open Door 6 | . . . . . . . . . . . . . . 2 . . . . 1 1 . . . . . 2 . . . . Branch Access Points 7 | . . . 1 . . . 1 1 . . . . 1 . . . . 1 . . . . 1 . . . . 1 . . Terminal Index 2 | . . . . . . . . . . . . . . 1 . . . 1 . . . . . . . . . . . . Fabricator Index 1 | . . . . . . . . . . . . . . . . . . 1 . . . . . . . . . . . . Alert Level 1 | . . . . . . . . 1 . . . . . . . . . . . . . . . . . . . . . . Unreport Threat 11 | . . . . . . . . . . . . . 2 2 2 . 1 2 . . . . . . . . . . 1 1 Locate Traps 6 | . 2 . . . . . 1 . . . . . . 1 . . 1 . . . . . . . . . . . 1 . Hauler Manifests 1 | . . . . . . . . . . . . . . . . . . . . . . . 1 . . . . . . . Registered Components 1 | . . . . . . . . . . . . . . . . . . . . . . . 1 . . . . . . . Registered Prototypes 1 | . . . . . . . . . . . . . . . . . . . . . . . 1 . . . . . . . Zone Layout 5 | . . . . . . . . . . . . . . 1 . . 2 1 . . . . . . . . . . 1 . Fabricator Hacks 8 | . . . . . . . . . . . . . 3 . . . . . . . . . . . . . . 1 . 4 Load Schematic 3 | . . . . . . . . . . . . . 1 . . . . . . . . . . . . . . 1 . 1 Build 5 | . . . . . . . . . . . . . 2 . . . . . . . . . . . . . . . . 3 Repair Station Hacks 8 | . . . . . . . . . . . . . . . . . . 4 . . . . 3 . . . . . 1 . Scan Component 7 | . . . . . . . . . . . . . . . . . . 4 . . . . 2 . . . . . 1 . Repair 1 | . . . . . . . . . . . . . . . . . . . . . . . 1 . . . . . . . Recycling Unit Hacks . | . . . . . . . . . . . . . . . . . . . . . . . . . . . . . . . Scanalyzer 7 | . . . . . . . 2 . . . . . . . . . . . . . . . 2 . . . . . 3 . Insert Component 4 | . . . . . . . 1 . . . . . . . . . . . . . . . 1 . . . . . 2 . Analyze 3 | . . . . . . . 1 . . . . . . . . . . . . . . . 1 . . . . . 1 . Garrison Access Hacks . | . . . . . . . . . . . . . . . . . . . . . . . . . . . . . . . Unauthorized Hacks 94 | . 7 . . . . . 10 8 . . . . 12 10 11 . . 1 . . . . 7 . . . . 5 19 4 Terminals 28 | . 2 . . . . . 2 2 . . . . . 5 5 . . . . . . . 3 . . . . 1 7 1 Track 10 | . 1 . . . . . 1 1 . . . . . 1 1 . . . . . . . 1 . . . . . 4 . Assimilate 1 | . . . . . . . . . . . . . . . . . . . . . . . 1 . . . . . . . Botnet 14 | . 1 . . . . . 1 1 . . . . . 3 2 . . . . . . . 1 . . . . 1 3 1 Disrupt 2 | . . . . . . . . . . . . . . . 2 . . . . . . . . . . . . . . . Operators 1 | . . . . . . . . . . . . . . 1 . . . . . . . . . . . . . . . . Fabricators 2 | . . . . . . . . . . . . . 1 . . . . . . . . . . . . . . 1 . . Prioritize 1 | . . . . . . . . . . . . . 1 . . . . . . . . . . . . . . . . . Download 1 | . . . . . . . . . . . . . . . . . . . . . . . . . . . . 1 . . Repair Stations . | . . . . . . . . . . . . . . . . . . . . . . . . . . . . . . . Recycling Units 4 | . 1 . . . . . 2 1 . . . . . . . . . . . . . . . . . . . . . . Tunnel 4 | . 1 . . . . . 2 1 . . . . . . . . . . . . . . . . . . . . . . Scanalyzers . | . . . . . . . . . . . . . . . . . . . . . . . . . . . . . . . Garrison Access 3 | . . . . . . . . . . . . . 2 . . . . . . . . . . . . . . . . 1 Jam 3 | . . . . . . . . . . . . . 2 . . . . . . . . . . . . . . . . 1 Data Cores Recovered 1 | . . . . . . . 1 . . . . . . . . . . . . . . . . . . . . . . . Used . | . . . . . . . . . . . . . . . . . . . . . . . . . . . . . . . Hacking Detections 63 | . 5 . 1 . . . 3 2 . . . . 7 7 4 . 5 6 . . . . 2 . . . . 5 11 5 Full Trace Events 6 | . 1 . 1 . . . 1 . . . . . 1 1 . . . 1 . . . . . . . . . . . . Feedback Events 1 | . 1 . . . . . . . . . . . . . . . . . . . . . . . . . . . . . Corruption 1 | . 1 . . . . . . . . . . . . . . . . . . . . . . . . . . . . . Feedback Blocked . | . . . . . . . . . . . . . . . . . . . . . . . . . . . . . . . Robot Schematics Acquired . | . . . . . . . . . . . . . . . . . . . . . . . . . . . . . . . Robots Built . | . . . . . . . . . . . . . . . . . . . . . . . . . . . . . . . Matter . | . . . . . . . . . . . . . . . . . . . . . . . . . . . . . . . Time . | . . . . . . . . . . . . . . . . . . . . . . . . . . . . . . . Total Robot Build Rating . | . . . . . . . . . . . . . . . . . . . . . . . . . . . . . . . Part Schematics Acquired 17 | . . . . . . . 1 . . . 6 . . 1 . . . . . . 4 . 2 . . . . 1 1 1 Parts Built 8 | . . . . . . . . . . . . . 2 . . . . . . . . . . . . . . . . 6 Matter 1331 | . . . . . . . . . . . . . 497 . . . . . . . . . . . . . . . . 834 Time 412 | . . . . . . . . . . . . . 205 . . . . . . . . . . . . . . . . 207 Total Part Build Rating 65 | . . . . . . . . . . . . . 11 . . . . . . . . . . . . . . . . 54 Parts Repaired 1 | . . . . . . . . . . . . . . . . . . . . . . . 1 . . . . . . . Time 54 | . . . . . . . . . . . . . . . . . . . . . . . 54 . . . . . . . Parts Recycled . | . . . . . . . . . . . . . . . . . . . . . . . . . . . . . . . Recycled Matter . | . . . . . . . . . . . . . . . . . . . . . . . . . . . . . . . Retrieved Matter . | . . . . . . . . . . . . . . . . . . . . . . . . . . . . . . . Retrieved Components . | . . . . . . . . . . . . . . . . . . . . . . . . . . . . . . . Parts Scanalyzed 3 | . . . . . . . 1 . . . . . . . . . . . . . . . 1 . . . . . 1 . Part Schematics Acquired 3 | . . . . . . . 1 . . . . . . . . . . . . . . . 1 . . . . . 1 . Parts Damaged 1 | . . . . . . . . . . . . . . . . . . . . . . . 1 . . . . . . . Bothacking | -11 -10 -10 -9 -9 -9 -8 -8 -7 -7 -7 -7 -6 -6 -6 -6 -6 -6 -5 -5 -5 -5 -4 -4 -4 -4 -4 -3 -3 -3 -2 ------------ Run | Scr Mat Min Mat Min Exi Min Mat Fac Low Low Zio Pro Fac Ext Cet Arc Hub Fac Upp Upp Zhi Pro Fac Upp Upp War Pro Res Qua Res Used RIF Installer . | . . . . . . . . . . . . . . . . . . . . . . . . . . . . . . . Robots Hacked . | . . . . . . . . . . . . . . . . . . . . . . . . . . . . . . . Non-combat . | . . . . . . . . . . . . . . . . . . . . . . . . . . . . . . . Combat . | . . . . . . . . . . . . . . . . . . . . . . . . . . . . . . . Robot Hacks Applied . | . . . . . . . . . . . . . . . . . . . . . . . . . . . . . . . Relay Couplers Released 7 | . . . . . . . . . . . . . . . . . . . . . . . . . . . . 3 . 4 Programmers 7 | . . . . . . . . . . . . . . . . . . . . . . . . . . . . 3 . 4 Robots Rewired 16 | . . . . . . . . . . . . . . 11 . . . 2 . . . . . . . 3 . . . . Allies Hacked 1 | . . . . . . . . . . . . . . . . . . 1 . . . . . . . . . . . . Hacks Repelled . | . . . . . . . . . . . . . . . . . . . . . . . . . . . . . . . Allies | -11 -10 -10 -9 -9 -9 -8 -8 -7 -7 -7 -7 -6 -6 -6 -6 -6 -6 -5 -5 -5 -5 -4 -4 -4 -4 -4 -3 -3 -3 -2 -------- Run | Scr Mat Min Mat Min Exi Min Mat Fac Low Low Zio Pro Fac Ext Cet Arc Hub Fac Upp Upp Zhi Pro Fac Upp Upp War Pro Res Qua Res Total Allies 28 | . . . . . . . . . . . 2 . . 14 . . . 2 . . . . 1 . . 3 . . . 6 Largest Group 8 | . . . . . . . . . . . 2 2 . 8 1 . . 2 . . . . 1 . . 3 2 . . 6 Highest-Rated Group 248 | . . . . . . . . . . . 52 52 . 248 37 . . 53 . . . . 10 . . 172 100 . . 82 Highest-Rated Ally 156 | . . . . . . . . . . . 32 32 . 156 37 . . 41 . . . . 10 . . 60 56 . . 15 Total Orders 4 | . . . . . . . . . . . . . . . 2 . . . . . . . 2 . . . . . . . GOTO 3 | . . . . . . . . . . . . . . . 1 . . . . . . . 2 . . . . . . . FOLLOW 1 | . . . . . . . . . . . . . . . 1 . . . . . . . . . . . . . . . Ally Attacks 153 | . . . . . . . . . . . . 7 . 110 4 . . 1 . . . . . . . 11 1 . . 19 Total Damage 3591 | . . . . . . . . . . . . 51 . 2417 40 . . . . . . . . . . 643 50 . . 390 Kills 24 | . . . . . . . . . . . . 1 . 20 1 . . . . . . . . . . 2 . . . . Allies Corrupted . | . . . . . . . . . . . . . . . . . . . . . . . . . . . . . . . Allies Melted . | . . . . . . . . . . . . . . . . . . . . . . . . . . . . . . . Intel | -11 -10 -10 -9 -9 -9 -8 -8 -7 -7 -7 -7 -6 -6 -6 -6 -6 -6 -5 -5 -5 -5 -4 -4 -4 -4 -4 -3 -3 -3 -2 ------- Run | Scr Mat Min Mat Min Exi Min Mat Fac Low Low Zio Pro Fac Ext Cet Arc Hub Fac Upp Upp Zhi Pro Fac Upp Upp War Pro Res Qua Res Robot Analysis Total 6 | . 1 . . . . . . . . . . . . 1 . . . . . . 4 . . . . . . . . . Derelict Logs Recovered 13 | . . . . 2 . . . . 1 3 1 2 . . . . . . . 1 . 1 . . 2 . . . . . Drone Launches . | . . . . . . . . . . . . . . . . . . . . . . . . . . . . . . . Drone Recoveries . | . . . . . . . . . . . . . . . . . . . . . . . . . . . . . . . Exploration | -11 -10 -10 -9 -9 -9 -8 -8 -7 -7 -7 -7 -6 -6 -6 -6 -6 -6 -5 -5 -5 -5 -4 -4 -4 -4 -4 -3 -3 -3 -2 ------------- Run | Scr Mat Min Mat Min Exi Min Mat Fac Low Low Zio Pro Fac Ext Cet Arc Hub Fac Upp Upp Zhi Pro Fac Upp Upp War Pro Res Qua Res Turns Passed 36298 | 32 555 258 605 808 587 620 832 686 1801 1424 1635 1126 2643 1833 884 907 989 1010 1560 1675 287 1635 1019 966 1415 1016 1038 1470 2369 2613 Spaces Moved 16990 | 18 327 159 270 574 420 315 321 307 1011 865 995 617 1229 789 309 128 381 415 868 909 163 776 478 464 650 508 505 512 864 843 Core 7 | . . . . . . . . . . . . . . . . . . . . . . . . . . . . . . 7 Treads 15176 | . 70 6 59 . . 221 292 307 1011 865 995 617 1229 789 309 128 381 415 868 909 163 776 478 464 650 508 505 512 819 830 Legs 45 | . . . . . . . . . . . . . . . . . . . . . . . . . . . . . 45 . Wheels 1756 | 18 257 153 211 574 420 94 29 . . . . . . . . . . . . . . . . . . . . . . . Hover . | . . . . . . . . . . . . . . . . . . . . . . . . . . . . . . . Flight 6 | . . . . . . . . . . . . . . . . . . . . . . . . . . . . . . 6 Fastest Speed 40 | 80 90 130 130 140 140 140 140 160 160 160 160 160 160 160 160 160 160 160 160 160 160 160 160 180 160 160 180 180 133 40 Average Speed 164 | 86 128 131 146 140 140 168 176 179 169 160 160 160 173 168 160 160 160 160 160 160 160 160 176 180 179 169 180 180 170 164 Slowest Speed 205 | 90 180 180 180 140 140 180 180 180 180 180 160 160 180 180 180 160 160 160 180 180 180 180 180 180 180 180 180 180 205 185 Overloaded Moves . | . . . . . . . . . . . . . . . . . . . . . . . . . . . . . . . Propulsion Burnouts . | . . . . . . . . . . . . . . . . . . . . . . . . . . . . . . . Robots Hopped . | . . . . . . . . . . . . . . . . . . . . . . . . . . . . . . . Cave-ins Triggered . | . . . . . . . . . . . . . . . . . . . . . . . . . . . . . . . Teleports 1 | . . . . . . . . . . . . . . . . . . . . . . . . . . . . . . 1 Exploration Rate (%) 59 | 3 60 31 27 96 89 85 45 11 96 92 88 80 34 76 70 70 48 14 90 87 62 67 12 60 77 66 72 16 94 27 Regions Visited 30 Branch Regions 21 Pre-discovered Areas 11 | . 1 . . . . . 2 1 . 1 2 . . . . . . . . . 3 . . . 1 . . . . . Known Exits Taken 23 | . . . 1 . . . 1 1 1 1 1 1 1 1 1 1 1 1 1 1 1 1 1 1 1 1 1 1 . . Unknown Exits Taken 7 | 1 1 1 . 1 1 1 . . . . . . . . . . . . . . . . . . . . . . 1 . Scrap Searched 25 | . . 1 . 1 . 1 . . 1 3 2 4 . . . . . . 1 4 . 2 . 1 2 . 2 . . . Spaces Dug 338 | . . 7 . . . . 9 . 3 3 . 9 29 . . . 6 12 32 25 . 53 17 17 26 16 19 39 5 11 Terrain Destroyed 1195 | . 3 13 2 . . . 29 . 3 3 . 44 29 58 114 . 198 31 60 176 . 54 17 50 26 17 29 91 58 90 Melee 310 | . . . . . . . . . 3 3 . 9 29 . . . 6 12 32 25 . 53 17 17 26 16 19 39 4 . Projectile 162 | . . . . . . . . . . . . . . 6 1 . 23 3 . . . 1 . . . 1 10 8 54 55 AOE 723 | . 3 13 2 . . . 29 . . . . 35 . 52 113 . 169 16 28 151 . . . 33 . . . 44 . 35 Actions | -11 -10 -10 -9 -9 -9 -8 -8 -7 -7 -7 -7 -6 -6 -6 -6 -6 -6 -5 -5 -5 -5 -4 -4 -4 -4 -4 -3 -3 -3 -2 --------- Run | Scr Mat Min Mat Min Exi Min Mat Fac Low Low Zio Pro Fac Ext Cet Arc Hub Fac Upp Upp Zhi Pro Fac Upp Upp War Pro Res Qua Res Total 22528 | 24 409 184 396 579 419 354 449 400 1070 884 1028 713 1595 1167 625 792 625 660 955 1051 189 993 586 534 842 627 568 779 1495 1536 Wait 2274 | . 21 5 10 4 . 10 16 12 1 . 15 53 144 92 185 635 158 122 22 75 . 106 45 19 137 15 16 52 169 135 Move 16961 | 17 326 158 269 573 419 314 320 306 1010 864 994 616 1228 788 308 127 381 414 867 908 162 775 477 463 649 507 504 511 863 843 Hop . | . . . . . . . . . . . . . . . . . . . . . . . . . . . . . . . Pick Up 295 | . 14 2 21 1 . . 14 15 8 2 1 2 32 29 20 1 4 15 1 . 3 2 7 2 2 7 2 16 40 32 Fast Attach 253 | 1 2 . 5 . . . 4 4 6 2 5 2 11 20 10 4 . 5 5 6 11 2 6 2 4 8 . 5 56 67 Attach 190 | . 2 2 1 . . 1 11 11 1 . . 2 16 16 6 1 2 6 2 3 . 1 3 4 3 4 1 12 46 33 Detach 89 | . . . 1 . . . 3 3 2 . . . 6 3 3 1 . 2 . 2 . . 1 1 3 3 . 3 38 14 Swap 472 | 2 9 4 17 . . 4 7 11 15 1 1 9 40 21 23 5 20 22 7 6 1 23 9 7 6 5 13 44 57 83 Drop 465 | . 7 . 27 1 . . 4 17 12 4 6 3 42 44 26 3 5 16 7 6 12 3 6 5 8 13 2 8 83 95 Fire 990 | 4 27 13 44 . . 25 69 21 12 8 . 17 42 62 44 14 47 32 11 12 . 22 11 11 3 2 11 80 133 213 Melee 356 | . . . . . . . . . 3 3 6 9 33 . . . 6 15 33 32 . 59 21 20 26 18 19 48 5 . Ram . | . . . . . . . . . . . . . . . . . . . . . . . . . . . . . . . Kick . | . . . . . . . . . . . . . . . . . . . . . . . . . . . . . . . Crush 34 | . 1 . 1 . . . 1 . . . . . 1 . . 1 2 2 . . . . . . 1 . . . 5 19 Escape Stasis 6 | . . . . . . . . . . . . . . 4 . . . . . . . . . . . . . . . 2 Rewire 143 | . . . . . . . . . . . . . . 88 . . . 9 . 1 . . . . . 45 . . . . Trap . | . . . . . . . . . . . . . . . . . . . . . . . . . . . . . . . Miscellaneous . | . . . . . . . . . . . . . . . . . . . . . . . . . . . . . . . Route ------- -11/Scrapyard -10/Materials (discovered 2 exits: *Mat / [*Min]) -10/Mines -9/Materials (discovered 2 exits: *Min x2) -9/Mines (discovered 4 exits: *Mat x2 / *Exi / *Zio) -9/Exiles -8/Mines -8/Materials (discovered 3 exits: *Fac x3) -7/Factory (discovered 4 exits: Sto x2 / *Low x2) -7/Lower Caves (discovered 2 exits: *Low / *Zio) -7/Lower Caves (discovered 2 exits: *Fac / *Zio) -7/Zion -6/Proximity Caves -6/Factory (discovered 5 exits: *Fac / *Low x2 / *Ext x2) -6/Extension (discovered 2 exits: *Fac / *Cet) -6/Cetus (discovered 2 exits: *Fac / *Arc) -6/Archives (discovered 2 exits: *Hub x2) -6/Hub_04(d) (discovered 2 exits: *Fac x2) -5/Factory (discovered 2 exits: *Upp x2) -5/Upper Caves -5/Upper Caves (discovered 2 exits: *Fac / *Zhi) -5/Zhirov -4/Proximity Caves -4/Factory (discovered 2 exits: *Upp x2) -4/Upper Caves -4/Upper Caves (discovered 2 exits: *Res / *War) -4/Warlord -3/Proximity Caves -3/Research (discovered 3 exits: Arm / *Qua x2) -3/Quarantine -2/Research History --------- Turn | Location | Event 4 | -11/Scrapyard | Discovered new exit (range 3) 33 | -11/Scrapyard | Entered Materials 73 | -10/Materials | Discovered new exit (range 7) 178 | -10/Materials | Discovered new exit (range 16) 313 | -10/Materials | Build established: Mutant 471 | -10/Materials | Central database locked down 588 | -10/Materials | Entered Mines 790 | -10/Mines | Found a damaged Exp. Sensor Array with a note attached 792 | -10/Mines | Found Prototype Device 815 | -10/Mines | Discovered new exit (range 10) 846 | -10/Mines | Entered Materials 846 | -9/Materials | Evolved 2 slots: Propulsion x1, Utility x1 951 | -9/Materials | Identified exit to Mines 1451 | -9/Materials | Entered Mines 1477 | -9/Mines | Received a Rocket Launcher from a helpful Derelict 1478 | -9/Mines | Discovered new exit (range 9) 1548 | -9/Mines | Learned 4 Materials zone layouts 1737 | -9/Mines | Learned 4 Materials zone layouts 1821 | -9/Mines | Discovered new exit (range 15) 1831 | -9/Mines | A Derelict revealed a hidden shortcut to a safe place 2178 | -9/Mines | A weapon hastily lodged in a ceiling crevice suddenly fell to the ground 2252 | -9/Mines | Deemed a non-threat by the Exiles lab entrance 2254 | -9/Mines | Discovered new exit (range 5) 2259 | -9/Mines | Entered Exiles 2259 | -9/Exiles | Found Exiles lab abandoned 2831 | -9/Exiles | Discovered new exit (range 12) 2846 | -9/Exiles | Entered Mines 3452 | -8/Mines | Discovered new exit (range 9) 3466 | -8/Mines | Entered Materials 3466 | -8/Materials | Evolved 2 slots: Propulsion x1, Utility x1 3467 | -8/Materials | Identified exit to Factory 3747 | -8/Materials | Discovered exit to Factory (range 7) 3825 | -8/Materials | Build established: Hauler-Mutant 4098 | -8/Materials | Identified Exp. Sensor Array 4298 | -8/Materials | Entered Factory 4298 | -7/Factory | Evolved 2 slots: Utility x1, Weapon x1 4363 | -7/Factory | Identified exit to Storage 4363 | -7/Factory | Identified exit to Lower Caves 4597 | -7/Factory | Build established: Hauler-Tank 4984 | -7/Factory | Entered Lower Caves 5271 | -7/Lower Caves | Build established: Scavenger-Mutant 5339 | -7/Lower Caves | Attacked by a delusional Derelict stockpiling parts 5550 | -7/Lower Caves | Learned Factory trap positions 6518 | -7/Lower Caves | A Derelict revealed a hidden shortcut to a safe place 6530 | -7/Lower Caves | Identified exit to Zion 6758 | -7/Lower Caves | Discovered new exit (range 5) 6781 | -7/Lower Caves | Identified exit to Lower Caves 6785 | -7/Lower Caves | Entered another Lower Caves area 6942 | -7/Lower Caves | Learned Factory stockpile data 6948 | -7/Lower Caves | Discovered new exit (range 11) 6966 | -7/Lower Caves | Identified exit to Factory 7725 | -7/Lower Caves | Learned Factory stockpile data 7868 | -7/Lower Caves | Discovered exit to Zion (range 11) 7929 | -7/Lower Caves | Learned location of Zion (-7) 7997 | -7/Lower Caves | Encountered a Warlord checkpoint 8209 | -7/Lower Caves | Entered Zion 8283 | -7/Zion | System corruption cleaned by Quarantine Array 8337 | -7/Zion | Received a visual enhancement algorithm 8377 | -7/Zion | Discovered new exit (range 13) 8686 | -7/Zion | Found Prototype Device 8686 | -7/Zion | Identified Bomb Factory No. 2 9043 | -7/Zion | Learned Factory stockpile data 9332 | -7/Zion | Gained Derelict followers 9827 | -7/Zion | Identified exit to Proximity Caves 9844 | -7/Zion | Entered Proximity Caves 9844 | -6/Proximity Caves | Accompanied by 2 allies 10339 | -6/Proximity Caves | Learned 4 Factory zone layouts 10394 | -6/Proximity Caves | Learned Factory garrison access intel 10927 | -6/Proximity Caves | Discovered exit to Factory (range 13) 10970 | -6/Proximity Caves | Entered Factory 10970 | -6/Factory | Evolved 2 slots: Utility x1, Weapon x1 10972 | -6/Factory | Loaded intel: 83 trap records 10974 | -6/Factory | Loaded intel: 4 garrison access locations 11347 | -6/Factory | Discovered new exit (range 15) 11379 | -6/Factory | Identified exit to Factory 11887 | -6/Factory | Fabricated Smartbomb Launcher (x1) 12070 | -6/Factory | Found Prototype Processor 12123 | -6/Factory | Identified Exp. Signal Interpreter 12125 | -6/Factory | Fabricated Exp. Sensor Array (x1) 12169 | -6/Factory | Identified exit to Lower Caves 12169 | -6/Factory | Identified exit to Extension 13309 | -6/Factory | Build established: Hauler-Mutant 13613 | -6/Factory | Entered Extension 13828 | -6/Extension | Rescued A7 13912 | -6/Extension | Rescued a captive Derelict 14013 | -6/Extension | Disrupted transfer network 14263 | -6/Extension | Spotted B-75 Beast 14275 | -6/Extension | Allies destroyed B-75 Beast 14279 | -6/Extension | Spotted B-75 Beast 14281 | -6/Extension | Extracted ID and sensor layout for unrecognized location from A7's data core 14332 | -6/Extension | Rescued a captive Derelict 14368 | -6/Extension | Lost 7 parts (3n2u2w) 14372 | -6/Extension | Destroyed B-75 Beast 15339 | -6/Extension | Discovered exit to Factory (range 10) 15340 | -6/Extension | Discovered new exit (range 6) 15366 | -6/Extension | Identified exit to Cetus 15446 | -6/Extension | Entered Cetus 15446 | -6/Cetus | Accompanied by 1 ally 15475 | -6/Cetus | Spotted Cetus Guard 15475 | -6/Cetus | Spotted Cetus Guard 15485 | -6/Cetus | Destroyed Cetus Guard 15485 | -6/Cetus | Spotted Cetus Guard 15488 | -6/Cetus | Destroyed Cetus Guard 15491 | -6/Cetus | Destroyed Cetus Guard 15499 | -6/Cetus | Spotted Cetus Guard 15506 | -6/Cetus | Destroyed Cetus Guard 15974 | -6/Cetus | Discovered new exit (range 15) 16071 | -6/Cetus | Spotted Cetus Guard 16071 | -6/Cetus | Spotted Cetus Guard 16080 | -6/Cetus | Destroyed Cetus Guard 16080 | -6/Cetus | Spotted Cetus Guard 16082 | -6/Cetus | Destroyed Cetus Guard 16085 | -6/Cetus | Destroyed Cetus Guard 16092 | -6/Cetus | Spotted Cetus Guard 16094 | -6/Cetus | Destroyed Cetus Guard 16099 | -6/Cetus | Discovered exit to Factory (range 15) 16107 | -6/Cetus | Met Revision 17 16113 | -6/Cetus | Destroyed Revision 17 16229 | -6/Cetus | Identified exit to Archives 16330 | -6/Cetus | Entered Archives 16499 | -6/Archives | Discovered new exit (range 15) 16531 | -6/Archives | Discovered new exit (range 14) 16555 | -6/Archives | Identified exit to Hub_04(d) 16588 | -6/Archives | Unable to access archive contents 16764 | -6/Archives | Build established: Scavenger-Skirmisher 17237 | -6/Archives | Entered Hub_04(d) 17237 | -6/Hub_04(d) | Discovered exit to Factory (range 10) 17871 | -6/Hub_04(d) | Discovered exit to Factory (range 15) 18214 | -6/Hub_04(d) | Network Hub disabled 18226 | -6/Hub_04(d) | Entered Factory 18226 | -5/Factory | Evolved 2 slots: Utility x2 18856 | -5/Factory | Found Hvy. Reflective Plating 18879 | -5/Factory | Identified exit to Upper Caves 19236 | -5/Factory | Entered Upper Caves 19344 | -5/Upper Caves | Encountered a Warlord checkpoint 19542 | -5/Upper Caves | Build established: Scavenger-Tank 19897 | -5/Upper Caves | Attracted the attention of an 0b10 checkpoint 20065 | -5/Upper Caves | Learned Extension trap positions 20065 | -5/Upper Caves | Learned Factory terminal intel 20393 | -5/Upper Caves | Discovered new exit (range 10) 20792 | -5/Upper Caves | Identified exit to Upper Caves 20796 | -5/Upper Caves | Entered another Upper Caves area 20797 | -5/Upper Caves | Identified exit to Factory 21034 | -5/Upper Caves | Encountered a Warlord checkpoint 21428 | -5/Upper Caves | Learned 8 Factory zone layouts 21822 | -5/Upper Caves | Build established: Scavenger-Mutant 22281 | -5/Upper Caves | Discovered new exit (range 6) 22368 | -5/Upper Caves | Build established: Scavenger-Tank 22469 | -5/Upper Caves | Identified exit to Zhirov 22471 | -5/Upper Caves | Entered Zhirov 22471 | -5/Zhirov | Discovered new exit (range 3) 22500 | -5/Zhirov | Met Zhirov 22537 | -5/Zhirov | Learned location of Quarantine (-3) 22537 | -5/Zhirov | Learned location of Testing (-2) 22537 | -5/Zhirov | Learned location of Command (-1) 22563 | -5/Zhirov | Zhirov requested help retrieving the SGEMP Prototype 22598 | -5/Zhirov | Found Alien Artifact 22598 | -5/Zhirov | Identified Integrated Reactor 22598 | -5/Zhirov | Installed Integrated Reactor, increased core energy generation (+2%) 22621 | -5/Zhirov | Found Alien Artifact 22750 | -5/Zhirov | Identified exit to Proximity Caves 22758 | -5/Zhirov | Entered Proximity Caves 23840 | -4/Proximity Caves | Destroyed B-86 Titan 24025 | -4/Proximity Caves | Learned Research terminal intel 24393 | -4/Proximity Caves | Entered Factory 24393 | -4/Factory | Evolved 2 slots: Utility x2 24396 | -4/Factory | Loaded intel: 19 terminal locations 24623 | -4/Factory | Identified exit to Upper Caves 24860 | -4/Factory | Repaired Centrium Heavy Treads 25101 | -4/Factory | Build established: Hauler-Tank 25251 | -4/Factory | Spotted B-86 Titan 25412 | -4/Factory | Entered Upper Caves 25483 | -4/Upper Caves | Build established: Hauler-Mutant 25617 | -4/Upper Caves | Acquired the password to a Derelict Tinkerer's latest research 25643 | -4/Upper Caves | Found Prototype Special Weapon 25741 | -4/Upper Caves | Caught by Unaware searching for contraband prototypes 25755 | -4/Upper Caves | Caught by Unaware searching for contraband prototypes 26119 | -4/Upper Caves | Discovered new exit (range 6) 26128 | -4/Upper Caves | Identified exit to Upper Caves 26286 | -4/Upper Caves | Build established: Hauler-Tank 26378 | -4/Upper Caves | Entered another Upper Caves area 26380 | -4/Upper Caves | Identified Molecular Deconstructor 26405 | -4/Upper Caves | Discovered new exit (range 7) 26414 | -4/Upper Caves | Identified exit to Research 27152 | -4/Upper Caves | Learned 4 Research zone layouts 27742 | -4/Upper Caves | Discovered new exit (range 16) 27767 | -4/Upper Caves | Identified exit to Warlord 27793 | -4/Upper Caves | Entered Warlord 27846 | -4/Warlord | System corruption cleaned by Quarantine Array 28022 | -4/Warlord | Found Prototype Device 28022 | -4/Warlord | Identified Thermal Barrier 28025 | -4/Warlord | Found Prototype Processor 28025 | -4/Warlord | Identified Exp. Core Analyzer 28056 | -4/Warlord | Found Prototype Device 28056 | -4/Warlord | Identified Exp. Phase Shifter 28066 | -4/Warlord | Found Prototype Reactor 28244 | -4/Warlord | Warlord's base attacked by MAIN.C 28310 | -4/Warlord | Met EX-DEC 28313 | -4/Warlord | Found Prototype Energy Cannon 28320 | -4/Warlord | Found Prototype Piercing Weapon 28320 | -4/Warlord | Identified Vortex Lance 28345 | -4/Warlord | Build established: Hauler-Skirmisher 28594 | -4/Warlord | Warlord forces counterattacked 28697 | -4/Warlord | Opened side exit 28777 | -4/Warlord | Discovered new exit (range 12) 28793 | -4/Warlord | Identified exit to Proximity Caves 28809 | -4/Warlord | Entered Proximity Caves 28809 | -3/Proximity Caves | Accompanied by 2 allies 29001 | -3/Proximity Caves | Build established: Hauler-Tank 29688 | -3/Proximity Caves | Discovered exit to Research (range 12) 29847 | -3/Proximity Caves | Entered Research 29847 | -3/Research | Evolved 2 slots: Utility x2 29849 | -3/Research | Loaded intel: 19 terminal locations 30273 | -3/Research | Identified exit to Armory 30273 | -3/Research | Identified exit to Quarantine 30449 | -3/Research | Build established: Scavenger-Gunner 30806 | -3/Research | Build established: Hauler-Gunner 30977 | -3/Research | Garrison activated, responded to threat 31093 | -3/Research | Destroyed 10 combat bots 31093 | -3/Research | Lost 5 parts (1n1u3w) 31260 | -3/Research | Spotted B-86 Titan 31317 | -3/Research | Entered Quarantine 31348 | -3/Quarantine | System corruption reached 10% 31783 | -3/Quarantine | Found Alien Artifact 31949 | -3/Quarantine | Build established: Hauler-Mutant 32127 | -3/Quarantine | Destroyed 7 combat bots 32379 | -3/Quarantine | Build established: Hauler-Gunner 32525 | -3/Quarantine | Found Alien Artifact 32525 | -3/Quarantine | Identified Core Reset Matrix 32525 | -3/Quarantine | Identified Transdimensional Reconstructor 32525 | -3/Quarantine | Identified Subatomic Replicator 32525 | -3/Quarantine | Used Core Reset Matrix 32529 | -3/Quarantine | Detected hypermatrix surge 32529 | -3/Quarantine | Sensed 2 artifacts in vicinity 32694 | -3/Quarantine | Cryocooling Duct disabled 32709 | -3/Quarantine | Ambient heat levels rising (+20) 32709 | -3/Quarantine | Non-combat units ordered to evacuate 32877 | -3/Quarantine | Found Phase Armor 32926 | -3/Quarantine | Found Phase Redirector 32983 | -3/Quarantine | Cryocooling Duct disabled 32998 | -3/Quarantine | Ambient heat levels rising (+20) 32998 | -3/Quarantine | Combat units ordered to evacuate 33098 | -3/Quarantine | Quarantine Guard activated 33155 | -3/Quarantine | Spotted Quarantine Guard 33155 | -3/Quarantine | Spotted Quarantine Guard 33170 | -3/Quarantine | Spotted Quarantine Guard 33172 | -3/Quarantine | Spotted Quarantine Guard 33175 | -3/Quarantine | Spotted Quarantine Guard 33188 | -3/Quarantine | Destroyed Quarantine Guard 33190 | -3/Quarantine | Destroyed Quarantine Guard 33204 | -3/Quarantine | Destroyed Quarantine Guard 33210 | -3/Quarantine | Destroyed Quarantine Guard 33227 | -3/Quarantine | Lost 4 parts (1n1u2w) 33343 | -3/Quarantine | Spotted Quarantine Guard 33351 | -3/Quarantine | Destroyed Quarantine Guard 33377 | -3/Quarantine | Spotted Quarantine Guard 33391 | -3/Quarantine | Destroyed Quarantine Guard 33392 | -3/Quarantine | Core integrity fell below 50% 33455 | -3/Quarantine | Spotted Quarantine Guard 33469 | -3/Quarantine | Destroyed Quarantine Guard 33535 | -3/Quarantine | Build established: Scavenger-Gunner 33633 | -3/Quarantine | Discovered new exit (range 8) 33633 | -3/Quarantine | Spotted Quarantine Guard 33635 | -3/Quarantine | Destroyed Quarantine Guard 33686 | -3/Quarantine | Entered Research 33686 | -2/Research | Evolved 2 slots: Utility x1, Weapon x1 34343 | -2/Research | Spotted B-90 Cyclops 34606 | -2/Research | Destroyed B-90 Cyclops 34732 | -2/Research | First assault squad dispatched 34769 | -2/Research | Fabricated Biometal Heavy Treads? 34832 | -2/Research | System corruption reached 10% 34859 | -2/Research | Fabricated Biometal Heavy Treads? 34937 | -2/Research | Found Unknown Device 34937 | -2/Research | Identified Antimissile System 34944 | -2/Research | Fabricated Biometal Heavy Treads? 35136 | -2/Research | Lost 3 parts (1u2w) 35204 | -2/Research | Destroyed 17 combat bots 35286 | -2/Research | Found Unknown Device 35286 | -2/Research | Identified Quantum Capacitor 35463 | -2/Research | Identified Vortex Chain Reactor 35518 | -2/Research | Lost 3 parts (3w) 35978 | -2/Research | Spotted B-90 Cyclops 36038 | -2/Research | Lost 4 parts (1n3u) 36087 | -2/Research | High security lockdown imminent 36167 | -2/Research | High security lockdown engaged 36229 | -2/Research | Core integrity fell below 50% 36254 | -2/Research | Released all parts (14) 36255 | -2/Research | Emitted hypermatrix ping 36258 | -2/Research | Core integrity fell below 20% 36260 | -2/Research | Assembled emerged from beneath the floor 36265 | -2/Research | Warped through subspace 36290 | -2/Research | Lost 18 parts (1p2n7u8w) 36299 | -2/Research | Destroyed by G-73 Enforcer with Heavy Laser Last Messages --------------- 36259_ Xenon Bombardment Thruster destroyed. 36260_ Assembled emerge from beneath the floor. 36260_ Slug penetrates B-90 Cyclops. 36262_ Acquired Xenon Bombardment Thruster. 36263_ as-32278 destroyed. 36264_ G-73 Enforcer destroyed. 36265_ Acquired Transdimensional Reconstructor. 36265_ Warped through subspace. 36266_ Detected hypermatrix ping. 36273_ W-44 Eye sends out distress signal. 36274_ System corrupted: Heat flow error (+276). 36278_ Detected hypermatrix ping. 36287_ ALERT: Assault forces dispatched. 36289_ System corrupted: Component data lost. 36299_ C-30 ARC bursts open, deploying its payload. 36299_ G-73 Enforcer unfolds itself. 36299_ L-61 Swordsman unfolds itself. 36299_ G-73 Enforcer unfolds itself. 36299_ B-74 Champion unfolds itself. 36299_ M-36 Artificer unfolds itself. Map ----- +----------------------------------------------------+ | #????????????????????????????????????????????? | | #????????????????????????????????????????????? | | #????????????????????????????????????????????? | | ?? #????????????????????????????????????????????? | | ?????????????????????????????????????????????????? | | ?????????????????????????????????????????????????? | | ?????????????????????????????????????????????????? | | ?????????????????????????????????????????????????? | | ?????????????????????????????????????????????????? | | ?????????????????????????????????????????????????? | | ?????????????????????????????????????????????????? | | ?????????????????????????????????????????????????? | | ?????????????????????????????????????????????????? | | ?????????????????????????????????????????????????? | | ?????????????????????????????????????????????????? | | ?????????????????????????????????????????????????? | | ?????????????????????????????????????????????????? | | ?????????????????????????????????????????????????? | | ???????????????????????######????????????????????? | | ?????????#?????????????# #????????????????????? | | ?????????# ????######### #????????????????????? | | ?????????# ????# = # #????????????????????? | | ?????????# ????# # #????????????????????? | | ?????????# ????# """ # #????????????????????? | | ?????????# ????# """ # #????????????????????? | | ?????????# ##### "S # @ ### #?????????????? | | ?????????# ## """ # ?????????? | | ?????????# ## "" + w ?????????? | | ?????????# / # g ?????????? | | ?????????+ ## # bl ?????????? | | ?????????# ## ######## gm??????????? | | ?????????# ## #???????? ??????????? | | ?????????# ######+#########??? ??????????? | | ?????? ???????????? | | ?????? ???????????? | | ?????? # ????????????? | | ????? #?????????????? | | ????#######+###############+########?????????????? | | ?????????????????????????????????????????????????? | | ?????????????????????????????????????????????????? | | ?????????????????????????????????????????????????? | | ?????????????????????????????????????????????????? | | ?????????????????????????????????????????????????? | | ?????????????????????????????????????????????????? | | ?????????????????????????????????????????????????? | | ?????????????????????????????????????????????????? | | ?????????????????????????????????????????????????? | | ?????????????????????????????????????????????????? | | ?????????????????????????????????????????????????? | | ?????????????????????????????????????????????????? | +----------------------------------------------------+ Best States ------------- Heat Dissipation 108 Coolant Potential 120 Energy Generation 35 Energy Capacity 2350 Matter Stores 415 Matter Capacity 800 Sight Range 22 Robot Scan Range 30 Terrain Scan Range 24 Terrain Scan Density 210 Base Temperature (-) 200 Armor Coverage 1350 Resistance: TH 50 Resistance: EX 25 Weapon Shielding 90 Phase Shifting 20 Evasion (%) 60 Melee Accuracy 5 Target Analysis 8 Core Analysis 15 Armor Integrity Analysis 50 Recoil Reduction 4 Matter Filtering 50 Kinecelleration 40 Offensive Hacking 20 Defensive Hacking 14 Item Schematics ----------------- Hyp. Railgun | -3/Quarantine | Scanalyzed Biometal Heavy Treads | -2/Research | Hacked Robot Schematics ------------------ None Fabricated ------------ Smartbomb Launcher | x1 | -6/Factory | Preloaded Exp. Sensor Array | x1 | -6/Factory Biometal Heavy Treads | x2 | -2/Research | Preloaded Biometal Heavy Treads | x2 | -2/Research | Preloaded Biometal Heavy Treads | x2 | -2/Research | Preloaded Alien Tech Used ----------------- Integrated Reactor Core Reset Matrix Phase Armor Phase Redirector Transdimensional Reconstructor Achievements -------------- None Challenges ------------ None Game ------ Seed ThrusterMeleeScythe Manual? 0 Play Time 13:21:27 Cumulative 308.3 hours Start 2019.12.07 @ 14:32:29 End 2020.03.29 @ 15:00:25 Sessions 29 Manual Loads 0 Difficulty Rogue Special Mode None Game No. 37 Rogue 37 Adventurer 0 Explorer 0 Win Type - Total 15 Types 10/2/0/0/2/0/1 Lore% 83 Gallery% 83 Achievement% 74 Wizard Run 0 Options --------- ASCII 0 Keyboard 0 Movement Numpad Keybinds 0 Fullscreen 2 Font 18/Terminus Map View 76x50 Tactical HUD 1 Map Filters NONE Filters NONE Steam 1 RUN: fa46b257-9a66-4fff-abed-d88af6c198a9